fUST/lending_fUST_20260501
["ID","MTS","AMOUNT","RATE_DAILY","PERIOD"]
[421402243,1777564912000,-436.19466,0.00013158,2]
[421402252,1777565376000,501.01398283,0.00021899,120]
[421402255,1777565428000,200.0,8.01e-05,2]
[421402263,1777565428000,236.50273,8.01e-05,2]
[421402341,1777565432000,-338.712,0.00012388,2]
[421402331,1777565432000,-390.23947034,0.00012388,2]
[421402509,1777565438000,-4271.04852966,0.00012388,2]
[421402511,1777565438000,-5000.0,0.00012513,2]
[421402512,1777565438000,-214.86845467,0.00012846,2]
[421402514,1777565438000,-500.0,0.00012846,2]
[421402513,1777565438000,-215.39001712,0.00012846,2]
[421402515,1777565438000,-500.0,0.00012846,2]
[421402517,1777565438000,-500.0,0.00012846,2]
[421402510,1777565438000,-1200.0,0.00012512,2]
[421402516,1777565438000,-500.0,0.00012846,2]
[421402520,1777565438000,-500.0,0.00012846,2]
[421402518,1777565438000,-500.0,0.00012846,2]
[421402521,1777565438000,-500.0,0.00012846,2]
[421402522,1777565438000,-500.0,0.00012846,2]
[421402524,1777565438000,-500.0,0.00012846,2]
[421402523,1777565438000,-500.0,0.00012846,2]
[421402519,1777565438000,-500.0,0.00012846,2]
[421402572,1777565439000,-769.17387647,0.000149,2]
[421402563,1777565439000,-189.74118105,0.00014497,2]
[421402561,1777565439000,-7296.36,0.00014496,2]
[421402573,1777565439000,-1254.62538089,0.000149,2]
[421402565,1777565439000,-7296.36,0.00014596,2]
[421402555,1777565439000,-1000.0,0.00013699,2]
[421402556,1777565439000,-1000.0,0.00013699,2]
[421402554,1777565439000,-8275.22038753,0.00013692,2]
[421402550,1777565439000,-300.0,0.00013692,2]
[421402551,1777565439000,-300.0,0.00013692,2]
[421402569,1777565439000,-348.48405836,0.000149,2]
[421402562,1777565439000,-413.013,0.00014497,2]
[421402566,1777565439000,-1910.0126617,0.00014597,2]
[421402579,1777565439000,-177.0,0.00014961,2]
[421402568,1777565439000,-7296.36,0.00014899,2]
[421402570,1777565439000,-976.2752053,0.000149,2]
[421402567,1777565439000,-25288.1701007,0.00014597,2]
[421402574,1777565439000,-182.92521852,0.000149,2]
[421402578,1777565439000,-229.875,0.00014918,2]
[421402576,1777565439000,-291.85050127,0.000149,2]
[421402577,1777565439000,-345.87720742,0.000149,2]
[421402575,1777565439000,-264.40121297,0.000149,2]
[421402553,1777565439000,-200.2,0.00013692,2]
[421402586,1777565439000,-7296.36,0.00014998,2]
[421402582,1777565439000,-7296.36,0.00014997,2]
[421402580,1777565439000,-7296.36,0.00014995,2]
[421402571,1777565439000,-1189.86369459,0.000149,2]
[421402552,1777565439000,-300.0,0.00013692,2]
[421402541,1777565439000,-500.0,0.00012846,2]
[421402548,1777565439000,-200.2,0.00013151,2]
[421402525,1777565439000,-500.0,0.00012846,2]
[421402530,1777565439000,-500.0,0.00012846,2]
[421402531,1777565439000,-618.18237112,0.00012846,2]
[421402533,1777565439000,-500.0,0.00012846,2]
[421402528,1777565439000,-500.0,0.00012846,2]
[421402527,1777565439000,-500.0,0.00012846,2]
[421402532,1777565439000,-500.0,0.00012846,2]
[421402526,1777565439000,-500.0,0.00012846,2]
[421402529,1777565439000,-500.0,0.00012846,2]
[421402534,1777565439000,-500.0,0.00012846,2]
[421402536,1777565439000,-500.0,0.00012846,2]
[421402544,1777565439000,-300.0,0.00012846,2]
[421402545,1777565439000,-115460.3595354,0.00012847,2]
[421402546,1777565439000,-161.10030561,0.00013051,2]
[421402538,1777565439000,-500.0,0.00012846,2]
[421402537,1777565439000,-500.0,0.00012846,2]
[421402539,1777565439000,-201.95388237,0.00012846,2]
[421402535,1777565439000,-500.0,0.00012846,2]
[421402542,1777565439000,-300.0,0.00012846,2]
[421402587,1777565439000,-7296.36,0.00014998,2]
[421402540,1777565439000,-200.73026678,0.00012846,2]
[421402543,1777565439000,-300.0,0.00012846,2]
[421402547,1777565439000,-200.2,0.00013151,2]
[421402549,1777565439000,-200.0,0.00013392,2]
[421402559,1777565439000,-420.0,0.0001409,2]
[421402558,1777565439000,-420.0,0.0001409,2]
[421402557,1777565439000,-1680.0,0.00013763,2]
[421402560,1777565439000,-420.0,0.0001409,2]
[421402585,1777565439000,-7296.36,0.00014998,2]
[421402564,1777565439000,-200.27057487,0.00014595,2]
[421402584,1777565439000,-7296.36,0.00014998,2]
[421402626,1777565439000,-783.57908402,0.000159,2]
[421402615,1777565439000,-587.0,0.00015454,2]
[421402620,1777565439000,-494.58943877,0.00015785,2]
[421402618,1777565439000,-783.57908402,0.000156,2]
[421402616,1777565439000,-180.0,0.00015454,2]
[421402619,1777565439000,-4726.86388904,0.000156,2]
[421402625,1777565439000,-151.0,0.00015875,2]
[421402621,1777565439000,-1976.37939732,0.00015785,2]
[421402622,1777565439000,-783.57908402,0.000158,2]
[421402617,1777565439000,-155.0,0.00015499,2]
[421402632,1777565439000,-325.5777581,0.00015945,2]
[421402628,1777565439000,-151.0,0.000159,2]
[421402638,1777565439000,-3000.0,0.0001602,2]
[421402640,1777565439000,-3000.0,0.0001604,2]
[421402629,1777565439000,-151.0,0.00015945,2]
[421402630,1777565439000,-151.9244844,0.00015945,2]
[421402636,1777565439000,-300.0,0.00016,2]
[421402635,1777565439000,-3000.0,0.00016,2]
[421402639,1777565439000,-3000.0,0.0001603,2]
[421402633,1777565439000,-359.8861356,0.00015945,2]
[421402631,1777565439000,-456.0872351,0.00015945,2]
[421402637,1777565439000,-3000.0,0.0001601,2]
[421402634,1777565439000,-155.0,0.00015999,2]
[421402643,1777565439000,-3000.0,0.0001606,2]
[421402581,1777565439000,-7296.36,0.00014996,2]
[421402642,1777565439000,-5000.0,0.0001606,2]
[421402644,1777565439000,-3000.0,0.0001607,2]
[421402623,1777565439000,-4726.86388904,0.000158,2]
[421402624,1777565439000,-30000.0,0.00015863,2]
[421402641,1777565439000,-3000.0,0.0001605,2]
[421402609,1777565439000,-2351.0,0.0001514,2]
[421402627,1777565439000,-4726.86388904,0.000159,2]
[421402583,1777565439000,-7296.36,0.00014997,2]
[421402589,1777565439000,-339.74694959,0.00014998,2]
[421402591,1777565439000,-599.57186516,0.00014999,2]
[421402592,1777565439000,-2395.88917316,0.00014999,2]
[421402593,1777565439000,-155.0,0.00014999,2]
[421402590,1777565439000,-155.0,0.00014999,2]
[421402596,1777565439000,-7296.36,0.00014999,2]
[421402595,1777565439000,-7296.36,0.00014999,2]
[421402597,1777565439000,-7296.36,0.00014999,2]
[421402594,1777565439000,-155.0,0.00014999,2]
[421402600,1777565439000,-7296.36,0.00014999,2]
[421402599,1777565439000,-7296.36,0.00014999,2]
[421402601,1777565439000,-7296.36,0.00014999,2]
[421402588,1777565439000,-6956.61305041,0.00014998,2]
[421402603,1777565439000,-7296.36,0.00014999,2]
[421402598,1777565439000,-7296.36,0.00014999,2]
[421402612,1777565439000,-4726.86388904,0.000154,2]
[421402610,1777565439000,-175.3322904,0.00015143,2]
[421402608,1777565439000,-500.0,0.00015,2]
[421402607,1777565439000,-645126.89617881,0.00015,2]
[421402605,1777565439000,-7296.36,0.00014999,2]
[421402611,1777565439000,-600.0,0.00015295,2]
[421402604,1777565439000,-7296.36,0.00014999,2]
[421402614,1777565439000,-287.0,0.00015454,2]
[421402613,1777565439000,-160.0,0.00015442,2]
[421402602,1777565439000,-7296.36,0.00014999,2]
[421402606,1777565439000,-7296.4335521,0.00014999,2]
[421402682,1777565440000,-221.647558,0.00016438,2]
[421402693,1777565440000,-151.0,0.00016438,2]
[421402683,1777565440000,-221.647558,0.00016438,2]
[421402674,1777565440000,-221.647558,0.00016438,2]
[421402678,1777565440000,-221.647558,0.00016438,2]
[421402679,1777565440000,-221.647558,0.00016438,2]
[421402681,1777565440000,-221.647558,0.00016438,2]
[421402675,1777565440000,-221.647558,0.00016438,2]
[421402680,1777565440000,-221.647558,0.00016438,2]
[421402676,1777565440000,-221.647558,0.00016438,2]
[421402677,1777565440000,-221.647558,0.00016438,2]
[421402684,1777565440000,-221.647558,0.00016438,2]
[421402692,1777565440000,-151.0,0.00016438,2]
[421402686,1777565440000,-221.647558,0.00016438,2]
[421402688,1777565440000,-221.647558,0.00016438,2]
[421402691,1777565440000,-151.0,0.00016438,2]
[421402690,1777565440000,-221.647565,0.00016438,2]
[421402687,1777565440000,-221.647558,0.00016438,2]
[421402689,1777565440000,-221.647558,0.00016438,2]
[421402705,1777565440000,-152.24942,0.00016438,2]
[421402700,1777565440000,-220.423205,0.00016438,2]
[421402695,1777565440000,-265.665663,0.00016438,2]
[421402708,1777565440000,-151.0,0.00016438,2]
[421402672,1777565440000,-221.647558,0.00016438,2]
[421402704,1777565440000,-151.0,0.00016438,2]
[421402685,1777565440000,-221.647558,0.00016438,2]
[421402671,1777565440000,-221.647558,0.00016438,2]
[421402657,1777565440000,-210.8818,0.00016169,2]
[421402668,1777565440000,-500.0,0.00016438,2]
[421402696,1777565440000,-151.0,0.00016438,2]
[421402648,1777565440000,-4726.86388904,0.000161,2]
[421402645,1777565440000,-3000.0,0.0001608,2]
[421402647,1777565440000,-783.57908402,0.000161,2]
[421402652,1777565440000,-3000.0,0.0001612,2]
[421402650,1777565440000,-151.0,0.000161,2]
[421402649,1777565440000,-3000.0,0.000161,2]
[421402651,1777565440000,-3000.0,0.0001611,2]
[421402646,1777565440000,-3000.0,0.0001609,2]
[421402654,1777565440000,-3000.0,0.0001614,2]
[421402664,1777565440000,-500.0,0.00016438,2]
[421402653,1777565440000,-3000.0,0.0001613,2]
[421402656,1777565440000,-3000.0,0.0001616,2]
[421402659,1777565440000,-5137.115224,0.0001618,2]
[421402663,1777565440000,-500.0,0.00016438,2]
[421402655,1777565440000,-3000.0,0.0001615,2]
[421402661,1777565440000,-4726.86388904,0.000162,2]
[421402658,1777565440000,-3000.0,0.0001617,2]
[421402660,1777565440000,-783.57908402,0.000162,2]
[421402662,1777565440000,-4726.86388904,0.000164,2]
[421402666,1777565440000,-609.83238735,0.00016438,2]
[421402665,1777565440000,-500.0,0.00016438,2]
[421402667,1777565440000,-500.0,0.00016438,2]
[421402670,1777565440000,-548.66174332,0.00016438,2]
[421402669,1777565440000,-500.0,0.00016438,2]
[421402673,1777565440000,-221.647558,0.00016438,2]
[421402697,1777565440000,-151.0,0.00016438,2]
[421402742,1777565440000,-281.58422761,0.00016438,2]
[421402709,1777565440000,-172.619209,0.00016438,2]
[421402746,1777565440000,-4726.86388904,0.000166,2]
[421402745,1777565440000,-155.0,0.00016499,2]
[421402734,1777565440000,-151.0,0.00016438,2]
[421402738,1777565440000,-151.0,0.00016438,2]
[421402736,1777565440000,-151.0,0.00016438,2]
[421402744,1777565440000,-151.0,0.00016438,2]
[421402739,1777565440000,-151.0,0.00016438,2]
[421402740,1777565440000,-151.0,0.00016438,2]
[421402743,1777565440000,-151.0,0.00016438,2]
[421402741,1777565440000,-151.0,0.00016438,2]
[421402747,1777565440000,-3292.0,0.00016653,2]
[421402748,1777565440000,-4726.86388904,0.000167,2]
[421402750,1777565440000,-3011.0,0.00016712,2]
[421402749,1777565440000,-250.0,0.000167,2]
[421402753,1777565440000,-2212.0,0.00016887,2]
[421402751,1777565440000,-720.0,0.00016824,2]
[421402752,1777565440000,-150.0,0.00016887,2]
[421402755,1777565440000,-1136.1,0.000169,2]
[421402754,1777565440000,-646.0,0.00016887,2]
[421402757,1777565440000,-482.0,0.00016951,2]
[421402756,1777565440000,-4726.86388904,0.000169,2]
[421402759,1777565440000,-1203.92442737,0.00017,2]
[421402761,1777565440000,-1203.92442737,0.000172,2]
[421402760,1777565440000,-500.0,0.00017,2]
[421402694,1777565440000,-151.0,0.00016438,2]
[421402735,1777565440000,-275.976218,0.00016438,2]
[421402729,1777565440000,-151.0,0.00016438,2]
[421402758,1777565440000,-204.0,0.00016961,2]
[421402732,1777565440000,-151.0,0.00016438,2]
[421402702,1777565440000,-151.0,0.00016438,2]
[421402730,1777565440000,-151.0,0.00016438,2]
[421402707,1777565440000,-151.0,0.00016438,2]
[421402698,1777565440000,-151.0,0.00016438,2]
[421402706,1777565440000,-151.0,0.00016438,2]
[421402711,1777565440000,-151.0,0.00016438,2]
[421402712,1777565440000,-151.0,0.00016438,2]
[421402714,1777565440000,-151.0,0.00016438,2]
[421402721,1777565440000,-218.2,0.00016438,2]
[421402710,1777565440000,-151.0,0.00016438,2]
[421402715,1777565440000,-151.0,0.00016438,2]
[421402717,1777565440000,-151.0,0.00016438,2]
[421402716,1777565440000,-151.0,0.00016438,2]
[421402719,1777565440000,-151.0,0.00016438,2]
[421402723,1777565440000,-151.0,0.00016438,2]
[421402718,1777565440000,-151.0,0.00016438,2]
[421402720,1777565440000,-151.0,0.00016438,2]
[421402727,1777565440000,-151.0,0.00016438,2]
[421402724,1777565440000,-151.0,0.00016438,2]
[421402728,1777565440000,-151.0,0.00016438,2]
[421402733,1777565440000,-151.0,0.00016438,2]
[421402725,1777565440000,-151.0,0.00016438,2]
[421402726,1777565440000,-151.0,0.00016438,2]
[421402722,1777565440000,-151.0,0.00016438,2]
[421402731,1777565440000,-151.0,0.00016438,2]
[421402713,1777565440000,-151.0,0.00016438,2]
[421402804,1777565441000,-299.0,0.00018055,2]
[421402792,1777565441000,-299.0,0.00018055,2]
[421402806,1777565441000,-299.0,0.00018055,2]
[421402809,1777565441000,-299.0,0.00018055,2]
[421402803,1777565441000,-299.0,0.00018055,2]
[421402801,1777565441000,-299.0,0.00018055,2]
[421402797,1777565441000,-299.0,0.00018055,2]
[421402800,1777565441000,-299.0,0.00018055,2]
[421402812,1777565441000,-299.0,0.00018055,2]
[421402802,1777565441000,-299.0,0.00018055,2]
[421402795,1777565441000,-299.0,0.00018055,2]
[421402808,1777565441000,-299.0,0.00018055,2]
[421402811,1777565441000,-299.0,0.00018055,2]
[421402805,1777565441000,-299.0,0.00018055,2]
[421402820,1777565441000,-1000.0,0.000182,2]
[421402810,1777565441000,-299.0,0.00018055,2]
[421402813,1777565441000,-299.0,0.00018055,2]
[421402821,1777565441000,-1000.0,0.000182,2]
[421402816,1777565441000,-1000.0,0.000182,2]
[421402826,1777565441000,-2355.88202836,0.00018219,2]
[421402814,1777565441000,-299.0,0.00018055,2]
[421402819,1777565441000,-1000.0,0.000182,2]
[421402824,1777565441000,-290.2,0.00018214,2]
[421402825,1777565441000,-7835.70410982,0.00018219,2]
[421402817,1777565441000,-1000.0,0.000182,2]
[421402815,1777565441000,-1000.0,0.000182,2]
[421402796,1777565441000,-299.0,0.00018055,2]
[421402823,1777565441000,-1000.0,0.000182,2]
[421402807,1777565441000,-299.0,0.00018055,2]
[421402789,1777565441000,-299.0,0.00018055,2]
[421402770,1777565441000,-371.268279,0.00017836,7]
[421402799,1777565441000,-299.0,0.00018055,2]
[421402822,1777565441000,-1000.0,0.000182,2]
[421402769,1777565441000,-290.2,0.00017817,2]
[421402764,1777565441000,-410.0,0.00017581,2]
[421402762,1777565441000,-1203.92442737,0.000173,2]
[421402765,1777565441000,-160.0,0.00017694,2]
[421402768,1777565441000,-1203.92442737,0.000177,2]
[421402771,1777565441000,-272.448085,0.00017836,7]
[421402763,1777565441000,-1203.92442737,0.000175,2]
[421402767,1777565441000,-6664.288991,0.00017694,2]
[421402766,1777565441000,-3412.144495,0.00017694,2]
[421402774,1777565441000,-1156.379084,0.00017836,2]
[421402775,1777565441000,-341.275543,0.00017836,7]
[421402777,1777565441000,-522.551087,0.00017836,7]
[421402790,1777565441000,-299.0,0.00018055,2]
[421402776,1777565441000,-2152.758169,0.00017836,2]
[421402772,1777565441000,-160.0,0.00017836,2]
[421402786,1777565441000,-299.0,0.00018055,2]
[421402780,1777565441000,-155.0,0.00017999,2]
[421402781,1777565441000,-500.0,0.00018,2]
[421402783,1777565441000,-290.2,0.00018015,2]
[421402785,1777565441000,-299.0,0.00018055,2]
[421402779,1777565441000,-1532.97555655,0.00017903,2]
[421402778,1777565441000,-1136.1,0.000179,2]
[421402793,1777565441000,-299.0,0.00018055,2]
[421402798,1777565441000,-299.0,0.00018055,2]
[421402791,1777565441000,-299.0,0.00018055,2]
[421402788,1777565441000,-299.0,0.00018055,2]
[421402794,1777565441000,-299.0,0.00018055,2]
[421402773,1777565441000,-160.0,0.00017836,7]
[421402833,1777565441000,-290.2,0.00018412,2]
[421402872,1777565441000,-290.2,0.00019008,5]
[421402839,1777565441000,-4652.924312,0.00018578,2]
[421402858,1777565441000,-500.0,0.00018904,2]
[421402857,1777565441000,-500.0,0.00018904,2]
[421402856,1777565441000,-508.06469156,0.00018904,2]
[421402874,1777565441000,-822.0,0.0001904,2]
[421402890,1777565441000,-500.0,0.00019178,2]
[421402866,1777565441000,-200503.62152168,0.00019,14]
[421402869,1777565441000,-473.0,0.00019,2]
[421402875,1777565441000,-259.80713501,0.00019178,2]
[421402876,1777565441000,-500.0,0.00019178,2]
[421402865,1777565441000,-5642.5534444,0.00018996,2]
[421402870,1777565441000,-873.0,0.00019,2]
[421402867,1777565441000,-2751.0,0.00019,2]
[421402873,1777565441000,-1356.96701197,0.00019016,2]
[421402855,1777565441000,-500.0,0.00018904,2]
[421402871,1777565441000,-154.0,0.00019,2]
[421402885,1777565441000,-500.0,0.00019178,2]
[421402881,1777565441000,-2659.6651,0.00019178,2]
[421402880,1777565441000,-2659.6651,0.00019178,2]
[421402884,1777565441000,-500.0,0.00019178,2]
[421402883,1777565441000,-643.4612,0.00019178,2]
[421402886,1777565441000,-500.0,0.00019178,2]
[421402878,1777565441000,-2702.5584,0.00019178,2]
[421402889,1777565441000,-500.0,0.00019178,2]
[421402888,1777565441000,-500.0,0.00019178,2]
[421402882,1777565441000,-11627.52851,0.00019178,2]
[421402879,1777565441000,-3303.1312,0.00019178,2]
[421402877,1777565441000,-500.0,0.00019178,2]
[421402832,1777565441000,-151.82375512,0.00018405,2]
[421402868,1777565441000,-500.0,0.00019,2]
[421402862,1777565441000,-410.0,0.0001895,2]
[421402887,1777565441000,-425.54139332,0.00019178,2]
[421402853,1777565441000,-500.0,0.00018904,2]
[421402827,1777565441000,-346.30570734,0.00018262,2]
[421402834,1777565441000,-445.202766,0.00018433,2]
[421402828,1777565441000,-337.0,0.00018319,2]
[421402831,1777565441000,-821.0,0.000184,2]
[421402838,1777565441000,-864.0,0.00018507,2]
[421402836,1777565441000,-537.6845,0.00018433,2]
[421402829,1777565441000,-825.0,0.00018359,2]
[421402837,1777565441000,-2150.738,0.00018433,2]
[421402860,1777565441000,-291.84526023,0.00018904,2]
[421402830,1777565441000,-822.0,0.00018399,2]
[421402849,1777565441000,-500.0,0.00018904,2]
[421402841,1777565441000,-151.82375512,0.00018663,7]
[421402842,1777565441000,-185.61600257,0.000187,2]
[421402840,1777565441000,-290.2,0.00018611,2]
[421402835,1777565441000,-537.6845,0.00018433,2]
[421402848,1777565441000,-151.5,0.00018904,2]
[421402861,1777565441000,-151.82375512,0.00018921,14]
[421402844,1777565441000,-2365.320855,0.00018728,2]
[421402864,1777565441000,-2230.315306,0.00018981,2]
[421402859,1777565441000,-500.0,0.00018904,2]
[421402854,1777565441000,-500.0,0.00018904,2]
[421402847,1777565441000,-1136.1,0.000189,2]
[421402863,1777565441000,-231.0,0.00018961,2]
[421402845,1777565441000,-465.375741,0.00018728,7]
[421402851,1777565441000,-500.0,0.00018904,2]
[421402850,1777565441000,-500.0,0.00018904,2]
[421402852,1777565441000,-500.0,0.00018904,2]
[421402843,1777565441000,-168.758308,0.00018728,7]
[421402846,1777565441000,-290.2,0.00018809,2]
[421402930,1777565442000,-522.82468797,0.00019178,2]
[421402928,1777565442000,-520.38786036,0.00019178,2]
[421402929,1777565442000,-500.0,0.00019178,2]
[421402940,1777565442000,-500.0,0.00019178,2]
[421402934,1777565442000,-1159.28,0.00019178,2]
[421402925,1777565442000,-500.0,0.00019178,2]
[421402926,1777565442000,-3572.28,0.00019178,2]
[421402915,1777565442000,-500.0,0.00019178,2]
[421402924,1777565442000,-500.0,0.00019178,2]
[421402922,1777565442000,-500.0,0.00019178,2]
[421402931,1777565442000,-708.51,0.00019178,2]
[421402932,1777565442000,-1142.41,0.00019178,2]
[421402947,1777565442000,-534.97,0.00019178,2]
[421402938,1777565442000,-1343.58,0.00019178,2]
[421402939,1777565442000,-500.0,0.00019178,2]
[421402935,1777565442000,-1167.77,0.00019178,2]
[421402933,1777565442000,-500.0,0.00019178,2]
[421402937,1777565442000,-500.0,0.00019178,2]
[421402948,1777565442000,-500.0,0.00019178,2]
[421402941,1777565442000,-676.38,0.00019178,2]
[421402942,1777565442000,-769.83,0.00019178,2]
[421402945,1777565442000,-769.52,0.00019178,2]
[421402943,1777565442000,-500.0,0.00019178,2]
[421402946,1777565442000,-500.0,0.00019178,2]
[421402944,1777565442000,-500.0,0.00019178,2]
[421402921,1777565442000,-500.0,0.00019178,2]
[421402936,1777565442000,-500.0,0.00019178,2]
[421402923,1777565442000,-500.0,0.00019178,2]
[421402905,1777565442000,-500.0,0.00019178,2]
[421402920,1777565442000,-3734.36,0.00019178,2]
[421402949,1777565442000,-554.67118447,0.00019178,2]
[421402898,1777565442000,-500.0,0.00019178,2]
[421402901,1777565442000,-897.07,0.00019178,2]
[421402896,1777565442000,-500.0,0.00019178,2]
[421402895,1777565442000,-500.0,0.00019178,2]
[421402897,1777565442000,-500.0,0.00019178,2]
[421402891,1777565442000,-500.0,0.00019178,2]
[421402893,1777565442000,-500.0,0.00019178,2]
[421402892,1777565442000,-500.0,0.00019178,2]
[421402894,1777565442000,-500.0,0.00019178,2]
[421402899,1777565442000,-1550.61,0.00019178,2]
[421402900,1777565442000,-500.0,0.00019178,2]
[421402904,1777565442000,-500.0,0.00019178,2]
[421402916,1777565442000,-500.0,0.00019178,2]
[421402908,1777565442000,-507.67669016,0.00019178,2]
[421402914,1777565442000,-500.0,0.00019178,2]
[421402906,1777565442000,-1123.89,0.00019178,2]
[421402913,1777565442000,-500.0,0.00019178,2]
[421402903,1777565442000,-571.66935326,0.00019178,2]
[421402910,1777565442000,-718.27,0.00019178,2]
[421402902,1777565442000,-500.0,0.00019178,2]
[421402911,1777565442000,-500.0,0.00019178,2]
[421402909,1777565442000,-604.7,0.00019178,2]
[421402912,1777565442000,-1981.29,0.00019178,2]
[421402927,1777565442000,-577.75,0.00019178,2]
[421402919,1777565442000,-769.13,0.00019178,2]
[421402918,1777565442000,-500.0,0.00019178,2]
[421402917,1777565442000,-892.8,0.00019178,2]
[421402907,1777565442000,-500.0,0.00019178,2]
[421402953,1777565442000,-500.0,0.00019178,2]
[421402952,1777565442000,-573.76,0.00019178,2]
[421402961,1777565442000,-500.0,0.00019178,2]
[421402979,1777565442000,-528.10154038,0.00019178,2]
[421402977,1777565442000,-500.0,0.00019178,2]
[421402978,1777565442000,-1821.83,0.00019178,2]
[421402981,1777565442000,-500.0,0.00019178,2]
[421402998,1777565442000,-500.0,0.00019178,2]
[421402995,1777565442000,-500.0,0.00019178,2]
[421402989,1777565442000,-500.0,0.00019178,2]
[421402991,1777565442000,-957.6,0.00019178,2]
[421402990,1777565442000,-500.0,0.00019178,2]
[421402992,1777565442000,-500.0,0.00019178,2]
[421402999,1777565442000,-629.65,0.00019178,2]
[421402997,1777565442000,-500.0,0.00019178,2]
[421402993,1777565442000,-1051.59,0.00019178,2]
[421403000,1777565442000,-500.0,0.00019178,2]
[421402996,1777565442000,-500.0,0.00019178,2]
[421402994,1777565442000,-500.0,0.00019178,2]
[421403002,1777565442000,-500.0,0.00019178,2]
[421403001,1777565442000,-500.0,0.00019178,2]
[421403005,1777565442000,-500.0,0.00019178,2]
[421403007,1777565442000,-500.0,0.00019178,2]
[421403006,1777565442000,-500.0,0.00019178,2]
[421403003,1777565442000,-500.0,0.00019178,2]
[421403004,1777565442000,-759.87,0.00019178,2]
[421403008,1777565442000,-500.0,0.00019178,2]
[421403011,1777565442000,-500.0,0.00019178,2]
[421402960,1777565442000,-500.0,0.00019178,2]
[421403010,1777565442000,-500.0,0.00019178,2]
[421402983,1777565442000,-500.0,0.00019178,2]
[421402982,1777565442000,-614.43,0.00019178,2]
[421403009,1777565442000,-500.0,0.00019178,2]
[421402986,1777565442000,-500.0,0.00019178,2]
[421402980,1777565442000,-2993.54,0.00019178,2]
[421402950,1777565442000,-617.92,0.00019178,2]
[421402962,1777565442000,-535.94,0.00019178,2]
[421402954,1777565442000,-500.0,0.00019178,2]
[421402956,1777565442000,-500.0,0.00019178,2]
[421402951,1777565442000,-500.0,0.00019178,2]
[421402955,1777565442000,-500.0,0.00019178,2]
[421402958,1777565442000,-500.0,0.00019178,2]
[421402957,1777565442000,-2618.92,0.00019178,2]
[421402968,1777565442000,-537.12146994,0.00019178,2]
[421402964,1777565442000,-521.55,0.00019178,2]
[421402969,1777565442000,-500.0,0.00019178,2]
[421402967,1777565442000,-671.94,0.00019178,2]
[421402959,1777565442000,-680.38,0.00019178,2]
[421402963,1777565442000,-500.0,0.00019178,2]
[421402965,1777565442000,-608.02,0.00019178,2]
[421402987,1777565442000,-500.0,0.00019178,2]
[421402988,1777565442000,-500.0,0.00019178,2]
[421402985,1777565442000,-500.0,0.00019178,2]
[421402976,1777565442000,-500.0,0.00019178,2]
[421402975,1777565442000,-500.0,0.00019178,2]
[421402984,1777565442000,-1284.0,0.00019178,2]
[421402974,1777565442000,-400.33305194,0.00019178,2]
[421402973,1777565442000,-500.0,0.00019178,2]
[421402970,1777565442000,-863.02,0.00019178,2]
[421402971,1777565442000,-496.64038852,0.00019178,2]
[421402966,1777565442000,-1676.94,0.00019178,2]